bitfinex/quotes_SOLUSD_20240727
["timestamp","ask_amount","ask_price","bid_price","bid_amount"]
[1722107119192,5.5217,181.11,180.99,13.8125]
[1722107119414,5.5217,181.11,181.02,13.8103]
[1722107119632,5.521,181.13,181.02,13.8103]
[1722107119792,15.0073,181.14,181.05,13.8081]
[1722107119992,6.0954,181.15,181.07,5.5224]
[1722107120317,6.0954,181.15,181.08,5.5223]
[1722107120489,6.0954,181.15,181.09,5.522]
[1722107121327,0.100442,181.16,181.09,5.522]
[1722107121811,0.100442,181.16,181.15,5.5202]
[1722107122192,0.100442,181.16,181.15,25.5202]
[1722107122690,0.100442,181.16,181.14,13.8013]
[1722107123009,0.100442,181.16,181.13,5.5208]
[1722107123203,0.100442,181.16,181.14,5.5205]
[1722107123832,0.100442,181.16,181.15,5.5202]
[1722107124326,0.100442,181.16,181.12,13.8026]
[1722107124529,0.100442,181.16,181.08,13.8055]
[1722107125196,5.5208,181.14,181.04,19.332]
[1722107125391,5.620542,181.16,181.04,13.8087]
[1722107125628,5.620542,181.16,181.03,16.61]
[1722107125629,0.100442,181.16,181.03,16.61]
[1722107126128,0.100442,181.16,181.11,5.5213]
[1722107126295,0.100442,181.16,181.1,13.8042]
[1722107126907,0.100442,181.16,181.14,5.5204]
[1722107127315,0.100442,181.16,181.09,13.8047]
[1722107127515,0.100442,181.16,181.09,19.3266]
[1722107127697,0.100442,181.16,181.09,13.8047]
[1722107127894,5.620542,181.16,181.08,5.5224]
[1722107128197,5.5209,181.13,181.05,19.3307]
[1722107128397,5.5214,181.12,181.03,5.5239]
[1722107128639,6.0954,181.15,180.99,5.7760512]
[1722107128808,5.522,181.1,181.01,5.5245]
[1722107129131,5.5224,181.09,180.97,5.78025196]
[1722107129304,5.5218,181.1,180.97,5.78025196]
[1722107129507,5.5215,181.12,181.03,5.5239]
[1722107129710,15.1773,181.14,181.01,5.5242]
[1722107129913,5.5218,181.1,181.01,5.5242]
[1722107130105,5.5214,181.12,181.04,5.5236]
[1722107130320,15.1773,181.14,181.05,5.5233]
[1722107130496,5.5213,181.12,181.04,5.5236]
[1722107130815,5.5209,181.13,181.05,5.5231]
[1722107131018,20.5279,181.14,181.06,5.5227]
[1722107131328,6.0954,181.15,181.07,45.0]
[1722107131533,0.100442,181.16,181.12,13.8029]
[1722107131702,0.100442,181.16,181.12,19.324]
[1722107132019,0.100442,181.16,181.15,5.5202]
[1722107132633,0.100442,181.16,181.15,50.5202]
[1722107133006,0.100442,181.16,181.15,70.6902]
[1722107134216,0.100442,181.16,181.15,87.3002]
[1722107134402,0.100442,181.16,181.15,87.4702]
[1722107135231,15.0257,181.31,181.17,16.61]
[1722107135426,5.5148,181.33,181.25,5.5171]
[1722107135607,6.1855,181.34,181.23,13.7943]
[1722107135806,5.5154,181.31,181.23,13.7943]
[1722107136108,6.1855,181.34,181.23,5.5176]
[1722107136308,6.1855,181.34,181.24,45.0]
[1722107136723,6.1855,181.34,181.24,50.5173]
[1722107136724,5.5148,181.33,181.24,50.5173]
[1722107137015,6.1855,181.34,181.24,45.0]
[1722107137196,5.5154,181.31,181.23,5.5176]
[1722107137402,6.1855,181.34,181.22,13.795]
[1722107137602,6.1855,181.34,181.18,13.7978]
[1722107137915,6.1855,181.34,181.15,5.5199]
[1722107137916,13.7889,181.31,181.15,5.5199]
[1722107138229,13.7889,181.31,181.14,13.801]
[1722107138230,5.5175,181.24,181.16,5.5199]
[1722107138402,5.5173,181.25,181.17,5.5196]
[1722107139018,5.5167,181.27,181.19,5.519]
[1722107139432,13.7889,181.31,181.11,6.4866]
[1722107139726,13.7889,181.31,181.12,5.521]
[1722107139727,13.7912,181.28,181.12,5.521]
[1722107140130,13.7912,181.28,181.13,5.5208]
[1722107140433,39.3812,181.3,181.16,5.5199]
[1722107140609,0.17,181.29,181.16,5.5199]
[1722107140999,0.17,181.29,181.17,5.5196]
[1722107141411,13.9602,181.29,181.05,39.0823]
[1722107141608,5.5181,181.22,181.14,5.5205]
[1722107141807,5.5181,181.22,181.15,45.0]
[1722107142036,5.5178,181.23,181.15,5.5202]
[1722107142226,5.5176,181.24,181.12,13.8025]
[1722107142539,21.2112,181.3,181.13,45.0]
[1722107142830,21.2112,181.3,181.19,5.519]
[1722107142831,5.5166,181.27,181.19,5.519]
[1722107143006,5.5161,181.29,181.2,5.5185]
[1722107143217,21.2112,181.3,181.14,20.0]
[1722107143218,21.2112,181.3,181.14,36.61]
[1722107143520,26.7269,181.3,181.15,61.95]
[1722107143718,5.516,181.29,181.21,13.7957]
[1722107144110,21.2112,181.3,181.17,13.7987]
[1722107144334,5.517,181.26,181.18,50.5193]
[1722107144659,21.2112,181.3,181.18,50.5193]
[1722107144660,21.2112,181.3,181.22,5.5181]
[1722107144836,21.2112,181.3,181.21,5.5184]
[1722107145132,5.5163,181.28,181.2,13.7967]
[1722107145437,26.727,181.3,181.21,45.0]
[1722107145604,21.2112,181.3,181.22,5.5178]
[1722107145804,26.727,181.3,181.23,45.0]
[1722107146109,26.727,181.3,181.25,5.5172]
[1722107146110,21.2112,181.3,181.25,5.5172]
[1722107146310,1.27895539,181.31,181.26,5.5168]
[1722107146511,1.27895539,181.31,181.16,39.0823]
[1722107146741,1.27895539,181.31,181.26,13.7917]
[1722107147032,1.27895539,181.31,181.27,45.0]
[1722107147233,1.27895539,181.31,181.27,5.5164]
[1722107147431,1.27895539,181.31,181.28,5.5163]
[1722107148109,1.27895539,181.31,181.29,45.0]
[1722107149142,1.27895539,181.31,181.3,5.5157]
[1722107149312,1.27895539,181.31,181.3,50.5157]
[1722107150222,1.27895539,181.31,181.3,70.5157]
[1722107151421,1.27895539,181.31,181.28,13.7903]
[1722107151628,1.27895539,181.31,181.17,2.30467522]
[1722107151822,1.27895539,181.31,181.23,13.7938]
[1722107152051,1.27895539,181.31,181.16,39.0823]
[1722107152415,1.27895539,181.31,181.24,13.7931]
[1722107152734,6.4956,181.29,181.16,15.9857]
[1722107152947,6.4956,181.29,181.22,5.5181]
[1722107153244,6.4956,181.29,181.12,6.4892]
[1722107153421,5.6866,181.28,181.12,6.4892]
[1722107153738,5.6866,181.28,181.2,5.5186]
[1722107154054,5.6866,181.28,181.11,16.6374]
[1722107154341,5.6866,181.28,181.09,5.77245945]
[1722107154342,5.5178,181.23,181.15,5.52]
[1722107154845,5.5178,181.23,181.15,13.8001]
[1722107155051,0.17,181.28,181.15,13.8001]
[1722107155220,5.5172,181.25,181.16,5.5197]
[1722107155419,5.5178,181.23,181.15,13.8001]
[1722107155827,5.5175,181.24,181.15,19.32]
[1722107156442,5.5178,181.23,181.15,19.32]
[1722107156639,5.5174,181.25,181.15,13.8001]
[1722107156839,5.5174,181.25,181.16,5.5199]
[1722107157156,5.6876,181.24,181.16,5.5199]
[1722107157452,5.5168,181.27,181.19,5.5188]
[1722107157751,0.17,181.28,181.18,13.7981]
[1722107158050,6.4956,181.29,181.22,5.5181]
[1722107158248,6.4956,181.29,181.21,13.7957]
[1722107158421,6.4956,181.29,181.22,50.5179]
[1722107158951,12.0116,181.29,181.22,45.0]
[1722107159253,6.4956,181.29,181.22,50.5181]
[1722107159421,6.4956,181.29,181.24,13.7937]
[1722107159627,6.4956,181.29,181.25,45.0]
[1722107159924,6.4956,181.29,181.25,50.5169]
[1722107160428,1.27895539,181.31,181.28,13.7901]
[1722107160632,1.27895539,181.31,181.25,50.5172]
[1722107160829,6.79455539,181.31,181.25,45.0]
[1722107161040,1.27895539,181.31,181.24,45.0]
[1722107161348,1.27895539,181.31,181.23,13.794]
[1722107161526,5.5168,181.27,181.18,13.7977]
[1722107161727,5.5169,181.26,181.18,19.317]
[1722107162034,1.27895539,181.31,181.16,5.5199]
[1722107162035,6.4956,181.23,181.16,5.5199]
[1722107162466,6.4956,181.23,181.14,19.3212]
[1722107162747,6.4956,181.23,181.16,5.5199]
[1722107163136,6.4956,181.23,181.14,13.8009]
[1722107163542,6.4956,181.23,181.17,5.5196]
[1722107163949,6.4956,181.23,181.14,13.8009]
[1722107164151,0.17,181.22,181.1,13.8039]
[1722107164635,5.5197,181.17,181.08,5.5221]
[1722107164832,5.5195,181.18,181.09,5.522]
[1722107165236,0.17,181.22,181.06,13.807]
[1722107165237,5.5204,181.15,181.06,13.807]
[1722107165446,6.4956,181.14,181.06,13.807]
[1722107165964,22.1944,181.14,181.06,13.807]
[1722107166455,22.1944,181.14,181.09,5.522]
[1722107166658,22.1944,181.14,181.1,5.5217]
[1722107166956,22.1944,181.14,181.0,5.77738276]
[1722107167190,5.5223,181.09,180.91,16.61]
[1722107167334,0.17,181.13,180.93,20.0]
[1722107167532,0.17,181.13,180.94,16.61]
[1722107167830,0.17,181.13,180.91,18.17]
[1722107167831,5.5227,181.07,180.91,18.17]
[1722107168133,13.9725,181.13,180.88,23.1266]
[1722107168352,5.5227,181.07,180.88,45.45207437]
[1722107168541,13.9725,181.13,180.88,45.45207437]
[1722107169037,5.5226,181.08,180.88,25.45207437]
[1722107169237,5.5228,181.07,180.89,16.61]
[1722107169556,13.9725,181.13,180.89,16.61]
[1722107169751,5.5231,181.06,180.89,16.61]
[1722107170247,5.5234,181.05,180.9,22.39107811]
[1722107170436,5.5229,181.07,180.9,22.39107811]
[1722107170631,65.0,181.12,180.91,20.0]
[1722107170861,13.8048,181.1,180.9,5.78107811]
[1722107171084,13.8048,181.1,180.9,6.88614163]
[1722107171085,5.5239,181.04,180.9,6.88614163]
[1722107171265,13.8048,181.1,180.9,5.78107811]
[1722107171575,0.17,181.09,180.9,5.78107811]
[1722107171742,0.95083289,181.11,180.91,1.10502452]
[1722107171948,0.95083289,181.11,180.93,16.61]
[1722107172184,22.1944,181.14,180.94,36.61]
[1722107172469,5.5215,181.11,180.95,0.34]
[1722107172776,23.14365,181.14,180.95,0.34]
[1722107172952,5.5214,181.12,180.95,0.34]
[1722107173155,23.14365,181.14,180.95,0.34]
[1722107173544,5.523,181.07,180.94,0.34]
[1722107173752,23.14365,181.14,180.94,0.34]
[1722107174482,23.14365,181.14,180.95,0.34]
[1722107174483,5.5214,181.12,180.95,0.34]
[1722107174723,23.14365,181.14,180.97,23.1549]
[1722107174857,6.4956,181.14,180.99,16.61]
[1722107175063,6.4956,181.14,181.0,36.95]
[1722107175364,6.4956,181.14,181.01,0.34]
[1722107176260,29.04137597,181.19,181.0,0.34]
[1722107176487,22.5734,181.19,181.0,0.34]
[1722107177147,22.5734,181.19,181.0,0.17]
[1722107177378,5.5218,181.1,180.99,0.17]
[1722107177556,5.521,181.13,180.98,0.34]
[1722107177761,22.5734,181.19,180.97,6.5449]
[1722107177980,13.7994,181.17,180.97,6.5449]
[1722107178182,42.5734,181.19,180.97,6.5449]
[1722107178183,38.17,181.16,180.97,6.5449]
[1722107178507,0.17,181.15,180.97,6.5449]
[1722107178708,0.17,181.15,180.97,23.1549]
[1722107179897,5.5208,181.14,180.98,36.95]
[1722107180097,22.5734,181.19,180.98,36.95]
[1722107180294,5.5203,181.15,180.98,36.95]
[1722107180520,5.5203,181.15,180.98,56.95]
[1722107181020,5.5199,181.17,180.98,56.95]
[1722107181489,0.17,181.18,180.98,36.95]
[1722107181689,5.5205,181.15,180.98,36.95]
[1722107182016,5.5205,181.15,180.98,56.95]
[1722107182188,5.5205,181.15,180.98,36.95]
[1722107182388,5.5206,181.14,180.98,36.95]
[1722107182597,0.17,181.18,180.98,36.95]
[1722107182794,0.17,181.18,180.97,6.5449]
[1722107182795,5.5215,181.11,180.97,6.5449]
[1722107182989,13.8016,181.14,180.97,6.5449]
[1722107183512,0.17,181.13,180.97,6.5449]
[1722107184014,6.1118,181.12,180.96,8.28831975]
[1722107184309,5.5281,180.9,180.86,15.0491]
[1722107184482,18.17,180.87,180.75,2.28297017]
[1722107184682,18.17,180.93,180.77,5.77218894]
[1722107184887,12.53790859,180.92,180.78,16.61]
[1722107185087,12.53790859,180.91,180.78,16.61]
[1722107185310,12.53790859,180.9,180.78,16.61]
[1722107185519,12.53790859,180.89,180.78,16.61]
[1722107185816,18.17,180.93,180.78,16.61]
[1722107186619,18.17,180.97,180.78,16.61]
[1722107186910,5.5265,180.95,180.79,19.8826]
[1722107187127,18.17,180.97,180.8,16.61]
[1722107187489,5.5268,180.94,180.8,16.61]
[1722107187793,18.17,180.97,180.8,16.61]
[1722107188198,18.17,180.93,180.8,16.61]
[1722107188812,18.17,180.97,180.8,16.61]
[1722107188991,23.696,180.97,180.8,16.61]
[1722107189193,34.6316,181.01,180.8,16.61]
[1722107189521,18.17,181.01,180.82,16.61]
[1722107189723,18.17,181.01,180.79,19.8826]
[1722107189724,5.5251,181.0,180.84,16.61]
[1722107190015,34.0097,181.06,180.88,16.61]
[1722107190215,34.0097,181.06,180.9,16.61]
[1722107190394,18.17,181.06,180.91,36.95]
[1722107190714,5.5241,181.03,180.91,16.95]
[1722107190915,15.8397,181.12,180.93,16.61]
[1722107190916,18.17,181.1,180.93,16.61]
[1722107191127,5.5233,181.05,180.96,15.7088]
[1722107191299,18.17,181.1,180.98,16.61]
[1722107191486,18.17,181.1,180.99,19.05168225]
[1722107191687,18.17,181.1,180.97,20.0]
[1722107191899,18.17,181.1,180.98,0.17]
[1722107193411,5.5233,181.05,180.98,0.17]
[1722107193617,18.17,181.1,180.97,20.0]
[1722107194514,5.5231,181.06,180.97,20.0]
[1722107194920,6.3126,181.12,180.98,0.34]
[1722107195228,5.5218,181.1,180.99,16.61]
[1722107195408,5.5218,181.1,181.0,20.17]
[1722107195614,5.5222,181.09,181.0,20.17]
[1722107196115,5.5225,181.08,181.0,20.17]
[1722107196319,5.523,181.06,181.0,20.0]
[1722107196529,5.523,181.06,180.99,20.0]
[1722107196709,5.523,181.06,180.98,24.8335]
[1722107196895,18.17,181.14,180.98,24.8335]
[1722107196896,13.806,181.09,180.98,20.0]
[1722107197096,5.5234,181.05,180.97,20.17]
[1722107197528,5.523,181.06,180.97,20.17]
[1722107197901,5.5248,181.0,180.96,15.7088]
[1722107198223,5.5248,181.0,180.93,4.8335]
[1722107198413,6.3126,181.05,180.91,15.7088]
[1722107198614,6.3126,181.05,180.88,4.8335]
[1722107198615,13.8118,181.01,180.88,4.8335]
[1722107198831,5.527,180.93,180.85,21.46404542]
[1722107199033,5.527,180.93,180.85,15.7088]
[1722107199328,5.5267,180.94,180.85,15.7088]
[1722107199704,5.5263,180.95,180.85,15.7088]
[1722107199920,31.9837,180.98,180.85,15.7088]
[1722107200730,5.5269,180.94,180.85,15.7088]
[1722107200941,31.9837,180.98,180.85,15.7088]
[1722107201114,1.28239135,180.97,180.85,15.7088]
[1722107201619,5.527,180.93,180.85,15.7088]
[1722107202030,5.5274,180.92,180.86,20.0]
[1722107202330,1.28239135,180.93,180.86,20.0]
[1722107203041,1.28239135,180.93,180.87,0.17]
[1722107203942,1.28239135,180.93,180.86,20.0]
[1722107204150,5.5276,180.91,180.86,20.0]
[1722107204519,5.528,180.9,180.86,20.0]
[1722107204769,5.5285,180.88,180.83,4.8335]
[1722107204945,5.5285,180.88,180.8,15.7088]
[1722107205131,6.81059135,180.89,180.8,15.7088]
[1722107205727,1.28239135,180.89,180.81,16.61]
[1722107206137,1.28239135,180.89,180.82,20.0]
[1722107206437,1.28239135,180.89,180.81,36.61]
[1722107206911,1.28239135,180.89,180.82,0.34]
[1722107207115,6.81059135,180.89,180.81,20.0]
[1722107207343,6.81109135,180.88,180.81,20.0]
[1722107207520,1.28239135,180.88,180.81,20.0]
[1722107208135,1.28239135,180.88,180.81,36.61]
[1722107208448,1.28239135,180.88,180.81,20.0]
[1722107209354,6.81089135,180.88,180.81,20.0]
[1722107210027,1.28239135,180.88,180.81,20.0]
[1722107210223,1.28239135,180.88,180.81,36.61]
[1722107210425,38.2995,180.94,180.81,36.61]
[1722107210426,5.5267,180.94,180.82,0.34]
[1722107210655,1.28239135,180.93,180.82,0.34]
[1722107211355,5.5276,180.91,180.82,0.34]
[1722107211560,5.5279,180.9,180.82,0.34]
[1722107211744,1.28239135,180.9,180.82,0.34]
[1722107211938,5.5283,180.89,180.82,0.17]
[1722107212134,1.28239135,180.9,180.81,20.0]
[1722107212651,6.81039135,180.9,180.81,20.0]
[1722107212847,5.5283,180.89,180.81,20.0]
[1722107213028,1.28239135,180.9,180.8,15.7088]
[1722107213233,33.27259135,180.9,180.74,16.5821]
[1722107213434,6.0179,180.89,180.74,22.33731512]
[1722107213637,5.5297,180.84,180.74,22.33731512]
[1722107213954,6.81209135,180.84,180.74,38.94731512]
[1722107214457,1.28239135,180.84,180.74,22.33731512]
[1722107214954,1.28239135,180.84,180.74,38.94731512]
[1722107215329,6.0179,180.89,180.74,38.94731512]
[1722107215556,6.81109135,180.88,180.74,38.94731512]
[1722107215741,1.28239135,180.87,180.75,20.0]
[1722107215930,1.28239135,180.87,180.76,16.61]
[1722107216135,1.28239135,180.87,180.78,16.61]
[1722107216460,1.28239135,180.87,180.79,36.95]
[1722107216668,1.28239135,180.87,180.79,20.34]
[1722107216838,1.28239135,180.87,180.79,0.17]
[1722107217234,1.28239135,180.87,180.75,20.0]
[1722107217443,5.5291,180.86,180.76,0.34]
[1722107217639,6.81119135,180.87,180.76,0.34]
[1722107217838,6.81119135,180.87,180.76,16.95]
[1722107218356,6.81119135,180.87,180.77,20.0]
[1722107218566,6.81119135,180.87,180.78,0.34]
[1722107218735,5.5292,180.86,180.78,0.34]
[1722107218937,5.5292,180.86,180.78,0.17]
[1722107220356,1.28239135,180.85,180.74,5.75521512]
[1722107220532,15.9153,180.84,180.69,16.5821]
[1722107220733,21.28239135,180.85,180.64,0.780287]
[1722107220734,5.5353,180.66,180.64,0.780287]
[1722107220959,1.28239135,180.65,180.64,0.780287]
[1722107221328,1.28239135,180.65,180.55,16.5821]
[1722107221533,18.17,180.64,180.55,16.5821]
[1722107221768,5.5371,180.6,180.55,16.5821]
[1722107221932,1.28239135,180.59,180.55,16.5821]
[1722107222132,18.17,180.68,180.55,16.5821]
[1722107222329,5.5353,180.66,180.5,16.61]
[1722107222531,6.81779135,180.66,180.5,16.61]
[1722107223062,1.28239135,180.65,180.48,16.61]
[1722107223562,5.5359,180.64,180.48,16.61]
[1722107223759,1.28239135,180.65,180.5,16.61]
[1722107223965,1.28239135,180.65,180.52,16.61]
[1722107224154,1.28239135,180.65,180.54,16.61]
[1722107224367,1.28239135,180.65,180.56,16.61]
[1722107224556,1.28239135,180.65,180.57,36.61]
[1722107224743,1.28239135,180.65,180.58,20.34]
[1722107224945,1.28239135,180.65,180.58,20.0]
[1722107225252,5.5367,180.62,180.49,5.76438276]
[1722107225454,5.5361,180.64,180.49,5.76438276]
[1722107225767,1.28239135,180.65,180.49,5.76438276]
[1722107226143,5.5371,180.6,180.49,5.76438276]
[1722107226343,5.5361,180.64,180.49,5.76438276]
[1722107226563,1.28239135,180.65,180.49,5.76438276]
[1722107226765,1.28239135,180.65,180.49,6.87150802]
[1722107226966,1.28239135,180.65,180.49,26.87150802]
[1722107227171,1.28239135,180.65,180.5,16.61]
[1722107227341,1.28239135,180.65,180.53,16.61]
[1722107227546,1.28239135,180.65,180.55,16.61]
[1722107227771,1.28239135,180.65,180.56,0.17]
[1722107227957,1.28239135,180.65,180.64,0.2768]
[1722107229482,6.81789135,180.65,180.64,0.2768]
[1722107231047,5.5381,180.57,180.44,2.30918458]
[1722107231245,13.8408,180.63,180.48,16.61]
[1722107231246,5.5377,180.58,180.48,16.61]
[1722107231469,6.6254,180.62,180.48,16.61]
[1722107231641,5.5376,180.59,180.48,16.61]
[1722107231843,5.538,180.57,180.48,16.61]
[1722107232077,5.538,180.57,180.47,5.75575076]
[1722107232078,5.5383,180.56,180.47,5.75575076]
[1722107232269,13.3431,180.6,180.47,5.75575076]
[1722107232472,5.5392,180.54,180.41,4.8335]
[1722107232860,5.5392,180.54,180.44,5.76021135]
[1722107233248,1.28239135,180.59,180.44,22.37021135]
[1722107233453,5.5391,180.54,180.44,22.37021135]
[1722107233662,1.28239135,180.54,180.44,5.76021135]
[1722107234059,5.5399,180.51,180.44,5.76021135]
[1722107234270,1.28239135,180.54,180.44,22.37021135]
[1722107234658,1.28239135,180.54,180.45,20.0]
[1722107234859,5.5398,180.51,180.45,20.0]
[1722107235073,1.28239135,180.54,180.44,5.76021135]
[1722107235274,5.5398,180.51,180.41,16.61]
[1722107235480,15.13079135,180.53,180.4,22.34398574]
[1722107235773,1.28239135,180.51,180.4,22.34398574]
[1722107235972,1.28239135,180.5,180.4,5.76188574]
[1722107236277,5.5416,180.46,180.4,5.76188574]
[1722107236481,5.5445,180.36,180.23,20.0]
[1722107236786,6.6254,180.37,180.24,2.28667312]
[1722107237078,18.17,180.32,180.28,5.76389933]
[1722107237264,5.5489,180.22,180.2,4.105]
[1722107237452,1.28239135,180.21,180.2,4.105]
[1722107237651,5.5503,180.17,180.16,137.088916]
[1722107237876,1.28239135,180.17,180.16,130.803616]
[1722107238076,20.4916,180.3,180.16,130.803616]
[1722107238296,18.17,180.23,180.16,130.803616]
[1722107238457,5.5501,180.18,180.16,130.803616]
[1722107238661,5.5485,180.23,180.16,130.303616]
[1722107238864,20.17,180.29,180.16,130.303616]
[1722107239272,13.8693,180.26,180.16,130.303616]
[1722107239584,0.17,180.25,180.16,130.303616]
[1722107240361,5.5477,180.26,180.16,130.303616]
[1722107240562,1.28239135,180.25,180.16,130.303616]
[1722107240780,5.5489,180.22,180.16,130.303616]
[1722107240962,1.28239135,180.21,180.16,130.303616]
[1722107241386,1.28239135,180.21,180.16,135.854116]
[1722107241586,1.28239135,180.21,180.18,5.5499]
[1722107241964,6.6254,180.3,180.2,13.8734]
[1722107242263,6.6254,180.3,180.16,130.303616]
[1722107242460,6.6254,180.3,180.17,20.0]
[1722107242663,6.6254,180.3,180.25,5.5477]
[1722107242863,6.6254,180.3,180.22,5.5485]
[1722107243079,6.6254,180.3,180.17,20.0]
[1722107243286,6.6254,180.3,180.24,5.5481]
[1722107243487,6.6254,180.3,180.17,20.0]
[1722107243682,0.96106472,180.35,180.17,20.0]
[1722107243896,1.28239135,180.34,180.18,0.34]
[1722107244884,1.28239135,180.34,180.26,5.5474]
[1722107245088,1.28239135,180.34,180.18,0.34]
[1722107245474,1.28239135,180.34,180.32,5.5454]
[1722107246061,1.28239135,180.34,180.19,16.61]
[1722107246263,1.28239135,180.34,180.2,20.34]
[1722107246486,1.28239135,180.34,180.21,16.95]
[1722107246686,0.96080356,180.37,180.33,5.5453]
[1722107246886,6.6254,180.38,180.22,20.0]
[1722107247186,6.6254,180.38,180.21,0.34]
[1722107247187,5.5448,180.35,180.26,5.5474]
[1722107247388,6.6254,180.38,180.11,2.28058987]
[1722107247563,5.5458,180.32,180.12,36.4384]
[1722107247768,5.5448,180.35,180.26,5.5474]
[1722107248063,6.6254,180.38,180.12,16.4384]
[1722107248264,0.17,180.37,180.24,5.5481]
[1722107248468,5.5453,180.34,180.25,5.5477]
[1722107249081,6.6254,180.38,180.16,172.67241497]
[1722107249299,5.5461,180.31,180.16,152.67241497]
[1722107249473,22.41,180.35,180.16,152.67241497]
[1722107249683,22.41,180.35,180.16,130.303616]
[1722107249871,5.5469,180.28,180.2,5.5493]
[1722107250089,22.41,180.3,180.2,5.5493]
[1722107250387,5.5477,180.26,180.16,130.303616]
[1722107250590,15.9531,180.32,180.16,130.303616]
[1722107250591,6.3383,180.24,180.16,130.303616]
[1722107250783,5.5501,180.18,180.16,130.303616]
[1722107251092,5.5504,180.17,180.07,5.5533]
[1722107251295,14.0463,180.17,180.0,13.8885]
[1722107251501,5.5524,180.1,179.97,5.5562]
[1722107251668,5.5524,180.1,179.95,5.7709889]
[1722107251669,5.5526,180.1,179.95,5.7709889]
[1722107251867,22.41,180.14,179.78,45.78432278]
[1722107252080,20.0,180.21,180.03,13.8858]
[1722107252081,13.8727,180.21,180.03,13.8858]
[1722107252295,22.41,180.17,179.84,20.0]
[1722107252476,22.41,180.17,179.98,13.8898]
[1722107252477,0.17,180.16,179.98,13.8898]
[1722107252792,45.17,180.16,180.01,13.8875]
[1722107253004,5.5523,180.11,180.02,5.5548]
[1722107253193,0.17,180.16,180.01,13.8875]
[1722107253194,5.5525,180.1,180.01,13.8875]
[1722107253500,13.8721,180.22,180.06,5.5536]
[1722107253702,1.45239135,180.21,179.92,1.11052254]
[1722107253901,1.28239135,180.2,179.92,1.11052254]
[1722107254100,5.55,180.18,179.91,36.61]
[1722107254303,1.28239135,180.17,180.09,5.5526]
[1722107254502,1.28239135,180.17,180.1,5.5523]
[1722107254684,1.28239135,180.17,179.98,16.61]
[1722107254891,1.28239135,180.17,180.11,5.5521]
[1722107255381,1.28239135,180.17,180.04,16.4884]
[1722107255382,1.28239135,180.17,180.12,5.5518]
[1722107255585,1.28239135,180.17,180.04,16.4884]
[1722107255586,1.28239135,180.17,180.09,5.5527]
[1722107255788,1.28239135,180.17,180.04,16.4884]
[1722107255989,1.28239135,180.17,179.96,16.4884]
[1722107256405,1.28239135,180.17,179.97,20.0]
[1722107257331,5.5519,180.12,180.01,5.5552]
[1722107257487,1.28239135,180.11,179.98,5.5561]
[1722107257688,1.28239135,180.11,179.96,16.4884]
[1722107258008,5.5539,180.06,179.97,5.5563]
[1722107258185,1.28239135,180.05,179.96,16.4884]
[1722107258391,5.5552,180.01,179.92,5.5579]
[1722107258702,1.28239135,180.05,179.93,5.5576]
[1722107259018,5.555,180.02,179.92,5.5577]
[1722107259185,1.28239135,180.01,179.87,16.4884]
[1722107259492,1.28239135,180.01,179.86,5.76472584]
[1722107259696,1.28239135,180.01,179.95,13.8924]
[1722107259896,1.28239135,180.01,179.95,5.557]
[1722107260098,1.28239135,180.01,179.82,5.76532673]
[1722107260312,1.28239135,180.01,179.91,13.8957]
[1722107260493,5.5559,179.99,179.91,19.4538]